Cogmind - Beta 15 @@@ ROGUE MODE // 2025.09.15 @ 21:42:11 Player: TapeIsSticky Result: Self-destructed Performance ------------- Evolutions (4) 2000 Regions Visited (15) 3000 Robots Destroyed (252) 1260 Value Destroyed (6611) 6611 Prototype IDs (44) 880 Alien Tech Used (1) 200 Bonus (1576) 1576 TOTAL SCORE: 15527 Bonus ------- High Alert Combat Kills 156 Follower Combat Kills 320 Entered Garrisons 200 Aligned with FarCom 300 Met Data Miner 300 Acquired ECA 300 Cogmind --------- Core Integrity 803/850 Matter 300/300 Energy 86/100 System Corruption 0% Temperature Cool (0) Movement Hovering (38) Location -6/Factory Parts ------- > --- POWER (2) -------- (None) > --- PROPULSION (4) --- Cooled Aerolev Unit Cooled Aerolev Unit Cooled Aerolev Unit Cooled Aerolev Unit > --- UTILITY (7) ------ Improved Cooling System Large Storage Unit Enhanced Optical Array Improved Signal Interpreter Advanced Targeting Computer System Shield Improved System Shield > --- WEAPON (3) ------- Chainsword Chainsword > --- INVENTORY (15) --- Light Fission Core Cold Fusion Reactor Gravmag Array Gravmag Array Advanced Heat Sink Encrypted Comm Array Advanced Transmission Jammer Improved Shield Generator High-powered Tractor Beam Cooled Particle Cannon Cooled Particle Cannon Advanced Assault Cannon Heavy Missile Launcher Peak State ------------ > --- POWER ------------ Light Fission Core Light Fission Core > --- PROPULSION ------- Cooled Aerolev Unit Cooled Aerolev Unit Cooled Aerolev Unit Cooled Aerolev Unit > --- UTILITY ---------- Improved Cooling System Large Storage Unit High-capacity Storage Unit Enhanced Optical Array Improved Signal Interpreter > --- WEAPON ----------- Cooled Particle Cannon Cooled Particle Cannon Cooled Particle Cannon > --- INVENTORY -------- Improved Deuterium Engine Cold Fusion Reactor Advanced Heat Sink Huge Storage Unit High-capacity Matter Pod Encrypted Comm Array Advanced Transmission Jammer Improved Shield Generator High-powered Tractor Beam Cooled Particle Cannon Cooled Particle Cannon Heavy Machine Gun Heavy Machine Gun Advanced Assault Cannon Heavy Missile Launcher [Rating: 69] Favorites ----------- Power Ion Engine Engine Ion Engine Power Core Light Fission Core Propulsion Light Treads Treads Light Treads Wheel Armored Wheel Hover Unit Cooled Aerolev Unit Utility High-capacity Storage Unit Device Seismic Detector Storage High-capacity Storage Unit Processor Experimental Core Analyzer Hackware System Shield Protection Hardened Light Armor Plating Weapon Heavy Assault Rifle Energy Gun AWS/EX-DEC Energy Cannon Cooled Particle Cannon Ballistic Gun Heavy Assault Rifle Ballistic Cannon Improved Light Cannon Launcher Rocket Launcher Special Weapon Mining Laser Slashing Weapon Chainsword Build | -11 -10 -10 -9 -9 -9 -8 -8 -8 -8 -7 -7 -7 -7 -6 -6 ------- Run | Yrd Mat Min Mat Min Exi Min Mat Gar Mat Fac Low Low Dat Pro Fac Slots Evolved 8 | . . . 2 . . . 2 . . 2 . . . . 2 Power . | . . . . . . . . . . . . . . . . Propulsion 2 | . . . 1 . . . . . . 1 . . . . . Utility 5 | . . . . . . . 2 . . 1 . . . . 2 Weapon 1 | . . . 1 . . . . . . . . . . . . Parts Attached 146 | 7 3 7 19 7 18 6 11 2 8 25 6 2 . 7 18 Power 19 | 1 . 1 3 1 2 . 2 . 1 2 1 1 . 2 2 Engine 15 | 1 . 1 3 1 2 . 2 . 1 2 1 . . 1 . Core 4 | . . . . . . . . . . . . 1 . 1 2 Reactor . | . . . . . . . . . . . . . . . . Propulsion 49 | 2 . . 10 2 7 3 3 2 4 5 3 1 . 3 4 Treads 43 | 2 . . 10 2 7 3 3 2 4 5 1 1 . 3 . Leg . | . . . . . . . . . . . . . . . . Wheel 2 | . . . . . . . . . . . 2 . . . . Hover 4 | . . . . . . . . . . . . . . . 4 Flight . | . . . . . . . . . . . . . . . . Utility 34 | 2 1 2 . 1 3 1 3 . . 9 2 . . . 10 Device 15 | 1 . 2 . . 1 1 2 . . 5 . . . . 3 Storage 4 | 1 1 . . . 1 . . . . . . . . . 1 Processor 5 | . . . . . . . 1 . . 1 . . . . 3 Hackware 3 | . . . . . . . . . . . . . . . 3 Protection 7 | . . . . 1 1 . . . . 3 2 . . . . Artifact . | . . . . . . . . . . . . . . . . Weapon 44 | 2 2 4 6 3 6 2 3 . 3 9 . . . 2 2 Energy Gun 4 | 1 1 . . . 1 . . . . 1 . . . . . Energy Cannon 7 | . . . . . 1 . . . . 4 . . . 2 . Ballistic Gun 21 | 1 . 1 6 2 4 2 2 . . 3 . . . . . Ballistic Cannon 4 | . . 1 . . . . . . 3 . . . . . . Launcher 5 | . 1 1 . 1 . . 1 . . 1 . . . . . Special Weapon 1 | . . 1 . . . . . . . . . . . . . Impact Weapon . | . . . . . . . . . . . . . . . . Slashing Weapon 2 | . . . . . . . . . . . . . . . 2 Piercing Weapon . | . . . . . . . . . . . . . . . . Special Melee Weapon . | . . . . . . . . . . . . . . . . Unidentified Prototypes 12 | . . . 1 . 3 . 4 . . 3 1 . . . . Parts Lost 28 | . . 2 1 1 5 1 3 . 1 3 . . . 9 2 Power 6 | . . . . . 1 . 1 . 1 . . . . 2 1 Propulsion 8 | . . . . . 2 . 2 . . 1 . . . 3 . Utility 9 | . . 1 . 1 1 . . . . 2 . . . 3 1 Weapon 5 | . . 1 1 . 1 1 . . . . . . . 1 . Highest Loss Streak 5 | . . 1 1 1 5 1 2 . 1 1 . . . 3 1 To Critical Strikes 5 | . . . . . 4 . . . . . . . . . 1 Average Backups 18 | 2 11 19 19 19 18 17 17 18 18 18 22 23 21 19 16 Power 1 | . 1 1 1 1 2 2 1 1 1 1 1 1 1 1 2 Propulsion 5 | . 3 8 7 7 5 4 2 3 5 5 7 5 5 3 1 Utility 4 | . 4 3 4 3 2 4 7 6 5 5 6 8 8 8 5 Weapon 6 | . 2 7 6 8 8 6 6 8 6 6 6 6 6 5 5 Tool/Special . | . . . . . . . . . . . . . . . . Unused Backups 36 | . 1 . 8 2 6 . 3 . 3 . . 1 . . 12 Power 6 | . . . 1 . 4 . . . . . . . . . 1 Propulsion 8 | . . . 3 . . . . . . . . 1 . . 4 Utility 12 | . . . 1 2 2 . 3 . . . . . . . 4 Weapon 10 | . 1 . 3 . . . . . 3 . . . . . 3 Tool/Special . | . . . . . . . . . . . . . . . . Average Slot Usage (%) 96 | . 100 99 99 100 99 99 96 90 92 99 99 96 80 88 78 Engine 9 | . 14 14 11 11 11 11 9 9 7 7 7 7 7 8 . Treads 27 | . 28 28 33 33 33 33 27 27 26 30 18 14 14 22 7 Wheel 1 | . . . . . . . . . . . 11 14 14 4 . Device 11 | . 14 13 11 . . 8 18 18 17 16 17 14 14 8 5 Storage 9 | . 14 14 11 11 11 11 9 9 9 7 7 7 7 7 6 Processor 3 | . . . . . . . 8 9 9 1 7 7 7 7 14 Protection 4 | . . . . 10 10 2 . . . 11 4 7 7 4 . Energy Gun 3 | . 14 14 4 . . . 3 9 5 . . . . . . Energy Cannon 2 | . . . . . . . . . . 6 7 7 . 16 8 Ballistic Gun 16 | . 14 3 25 31 31 32 20 9 5 5 14 14 1 2 . Ballistic Cannon 2 | . . 3 3 . . . . . 10 10 . . . . . Peak Build Rating 69 | 7 8 10 16 17 35 39 54 54 54 47 49 55 53 53 69 Average Rating 30 | 5 7 8 13 16 19 24 42 54 44 40 46 53 40 46 59 On Entrance 30 | . 7 8 9 15 17 24 24 54 54 32 44 49 53 53 45 Naked Turns . | . . . . . . . . . . . . . . . . Heaviest Build 127 | 14 50 51 57 62 104 62 67 66 66 85 115 119 119 127 79 Greatest Support 90 | 40 40 40 60 60 60 60 63 63 63 83 83 22 22 90 90 Greatest Overweight (x) 10 | . 1 1 . 1 1 1 1 1 1 1 5 5 5 10 8 Average Overweight (x) . | . . 1 . . . . . 1 . . 3 5 4 2 . Largest Inventory Capacity 25 | 8 20 20 20 20 25 20 20 20 20 20 25 25 25 25 20 Average Capacity 20 | 7 15 20 20 20 23 20 20 20 20 20 23 25 25 25 16 Most Carried 25 | 4 18 20 20 20 23 20 20 20 20 20 25 25 22 22 20 Average Carried 19 | 2 11 19 19 19 18 19 19 19 19 19 23 24 21 19 16 Final Capacity 25 | 8 20 20 20 20 20 20 20 20 20 20 25 25 25 20 15 Final Carried 25 | 4 17 20 20 20 19 20 19 20 20 20 25 21 21 19 15 Class Distribution -------------------- 30% | Scavenger-Gunner 22% | Scavenger-Tank 18% | Mutant 7% | Tank 5% | Skirmisher 5% | Gunner 3% | Commander-Gunner 3% | Scavenger-Skirmisher Dominant Class ---------------- Mutant | -10/Materials Mutant | -10/Mines Scavenger-Gunner | -9/Materials Scavenger-Tank | -9/Mines Scavenger-Tank | -9/Exiles Scavenger-Gunner | -8/Mines Scavenger-Gunner | -8/Materials Scavenger-Gunner | -8/Garrison Gunner | -8/Materials Scavenger-Tank | -7/Factory Skirmisher | -7/Lower Caves Scavenger-Skirmisher | -7/Lower Caves Scavenger-Mutant | -7/Data Miner Scavenger-Gunner | -6/Proximity Caves Hacker-Mutant | -6/Factory Resources | -11 -10 -10 -9 -9 -9 -8 -8 -8 -8 -7 -7 -7 -7 -6 -6 ----------- Run | Yrd Mat Min Mat Min Exi Min Mat Gar Mat Fac Low Low Dat Pro Fac Matter Collected 6372 | 315 420 119 676 372 1042 471 594 15 477 887 269 90 . 396 229 Remotely . | . . . . . . . . . . . . . . . . Salvage Created 9237 | 177 466 66 1244 498 575 750 1134 . 1035 1635 167 212 . 937 341 Parts 567 | 15 26 17 86 36 66 53 65 . 64 81 6 7 . 32 13 Haulers Intercepted 17 | . 1 . 5 . . . 1 . 5 3 . . . . 2 Recyclers Shooed 5 | . . 2 1 1 . . . . . . . . . . 1 Parts Field Recycled . | . . . . . . . . . . . . . . . . Retrieved Matter . | . . . . . . . . . . . . . . . . Parts Self-Destructed 31 | . . . . . . . . . . . 4 2 . 25 . Prevented 3 | . . . . . . . . . . . . 1 . 2 . Kills | -11 -10 -10 -9 -9 -9 -8 -8 -8 -8 -7 -7 -7 -7 -6 -6 ------- Run | Yrd Mat Min Mat Min Exi Min Mat Gar Mat Fac Low Low Dat Pro Fac Combat Hostiles Destroyed 177 | . 12 6 17 15 6 20 23 . 18 27 6 . . 23 4 Melee 1 | . . . . . . . . . . . . . . . 1 Guns 93 | . 12 3 9 6 2 19 23 . 9 6 2 . . 2 . Cannons 39 | . . . 3 . . . . . 7 18 . . . 11 . AOE 41 | . . 3 5 9 4 . . . . 3 4 . . 10 3 Classes Destroyed 19 | 2 4 1 3 1 3 2 . . . 1 . 1 . 1 . Worker 9 | . . . 1 3 . 1 . . 1 2 . . . . 1 Builder 9 | . . 2 3 . . . . . 1 3 . . . . . Tunneler 10 | 5 . 1 . 2 . 1 . . 1 . . . . . . Hauler 17 | . 1 . 5 . . . 1 . 5 3 . . . . 2 Recycler 11 | 1 . . 2 2 . . . . 2 4 . . . . . Operator 2 | . . . 1 . . . 1 . . . . . . . . Turret 1 | . . . . . 1 . . . . . . . . . . Watcher 12 | . 2 . 3 . . . 5 . 1 1 . . . . . Swarmer 61 | . 6 6 4 8 . 10 7 . 5 6 4 . . 5 . Grunt 71 | . 6 . 7 4 . 7 13 . 9 14 . . . 11 . Brawler 3 | . . . . . . 2 . . . . . . . 1 . Duelist 2 | . . . . 1 . . . . . . . . . 1 . Protector 1 | . . . . . . . . . . . . . . 1 . Sentry 21 | . . . 8 2 . . 3 . 3 2 1 . . 2 . Hunter 7 | . . . . . . 1 . . 1 3 . . . 1 1 Programmer 4 | . . . . . . . . . . 2 1 . . 1 . Zionite 8 | . . . . . 8 . . . . . . . . . . Decomposer 1 | . . . . . . . . . . . 1 . . . . Samaritan 4 | . . . . . . . . . . . . 4 . . . Assembled 8 | . . . . . 5 . . . . . . . . . 3 Best Kill Streak 10 | 2 5 5 6 5 10 5 9 . 6 7 4 . . 9 3 Combat Bots Only 9 | . 5 3 5 4 5 5 9 . 4 7 4 . . 9 3 Max Kills in Single Turn 5 | 1 1 2 3 5 3 2 2 . 2 2 3 1 . 2 3 Gunslinging 1 | . . . . 1 . . . . . . . . . . . Exploded 4 | . . 2 3 4 3 . . . . 2 3 . . 2 3 Melee 1 | . . . . . . . . . . . . . . . 1 Uniques/NPCs Destroyed 4 | . . . . . 4 . . . . . . . . . . 8R-AWN (-9/Exiles) EX-BIN (-9/Exiles) EX-HEX (-9/Exiles) EX-DEC (-9/Exiles) Combat | -11 -10 -10 -9 -9 -9 -8 -8 -8 -8 -7 -7 -7 -7 -6 -6 -------- Run | Yrd Mat Min Mat Min Exi Min Mat Gar Mat Fac Low Low Dat Pro Fac Hostile Shots Fired 888 | . 65 16 81 47 98 84 66 . 31 179 49 8 . 123 41 Missed 270 | . 21 5 25 12 22 22 22 . 10 62 20 4 . 35 10 Hits 618 | . 44 11 56 35 76 62 44 . 21 117 29 4 . 88 31 Melee 10 | . . . . 2 . 1 . . . . . 4 . 3 . Projectile 608 | . 44 11 56 33 76 61 44 . 21 117 29 . . 85 31 AOE 1 | . . . . . . . . . . 1 . . . . . Critical Strikes 52 | . 2 . 4 1 30 5 1 . 2 3 1 . . 2 1 Part Disruptions 2 | . . . . . . . 1 . . . . . . . 1 Damage Taken 9057 | . 461 117 773 503 1247 816 694 74 368 1576 297 . . 1661 470 Core 966 | . 107 10 99 9 178 72 124 . 8 119 11 . . 182 47 Absorbed by Shields . | . . . . . . . . . . . . . . . . Regen/Repaired (Parts) 146 | . . . . . . . . . 146 . . . . . . Core Remaining (%) 58 | 100 . 53 . . . 10 . . 76 . . . . 55 . Volleys Fired 578 | 16 59 19 58 28 81 44 54 . 31 96 16 16 . 40 20 Largest 3 | 2 2 2 3 3 3 3 3 . 3 3 3 3 . 3 2 Hottest 270 | 60 70 100 100 69 120 69 71 . 99 146 90 143 . 270 60 Shots Fired 1417 | 32 114 24 163 65 213 135 160 . 90 241 32 31 . 96 21 Gun 1027 | 32 113 12 144 56 202 135 159 . 39 77 16 16 . 26 . Cannon 347 | . . . 16 . 9 . . . 51 161 13 15 . 62 20 Launcher 36 | . 1 5 3 9 2 . 1 . . 3 3 . . 8 1 Special 7 | . . 7 . . . . . . . . . . . . . Kinetic 1014 | 16 58 5 148 56 202 132 137 . 65 137 16 16 . 26 . Thermal 317 | 16 55 14 12 . 9 . . . . 101 13 15 . 62 20 Explosive 36 | . 1 5 3 9 2 . 1 . . 3 3 . . 8 1 Electromagnetic 50 | . . . . . . 3 22 . 25 . . . . . . Robot Hit Streak 34 | 4 15 5 20 15 10 11 22 . 18 17 10 10 . 34 8 Robot Miss Streak 7 | 3 5 3 2 3 4 3 7 . 4 5 1 4 . 3 1 Penetration Max . | . . . . . . . . . . . . . . . . Secondary Targets 8 | . . . . 1 . 5 2 . . . . . . . . Max Gunslinging Chain 1 | . . . . 1 . 1 1 . . . . . . . . Autonomous 50 | . . . . . . 3 22 . 25 . . . . . . Shots Hit Robots 862 | 18 68 13 102 33 120 75 112 . 60 132 22 18 . 66 23 Core Hits 447 | 7 25 9 54 25 46 32 57 . 38 66 13 10 . 52 13 Critical Kills . | . . . . . . . . . . . . . . . . Critical Parts Destroyed . | . . . . . . . . . . . . . . . . Critical Strikes 15 | . . . 4 . . 2 2 . 3 2 . . . . 2 Burn 3 | . . . 3 . . . . . . . . . . . . Blast 6 | . . . 1 . . . . . 3 2 . . . . . Corrupt 4 | . . . . . . 2 2 . . . . . . . . Sever 2 | . . . . . . . . . . . . . . . 2 Melee Attacks 13 | . . . . . . . . . . . . . . . 13 Impact . | . . . . . . . . . . . . . . . . Slashing 13 | . . . . . . . . . . . . . . . 13 Piercing . | . . . . . . . . . . . . . . . . Sneak Attacks 1 | . . . . . . . . . . . . . . . 1 Combat Hostiles 1 | . . . . . . . . . . . . . . . 1 Follow-up Attacks 2 | . . . . . . . . . . . . . . . 2 Damage Inflicted 20981 | 229 855 507 2028 1321 2364 1251 1984 . 1550 3689 762 514 . 3053 874 Guns 10580 | 227 840 98 1329 542 1837 1239 1940 . 827 920 258 178 . 345 . Cannons 5784 | . . . 221 . 307 . . . 629 2293 269 336 . 1304 425 Explosions 3900 | . . 273 453 721 220 . . . . 393 235 . . 1404 201 Melee 248 | . . . . . . . . . . . . . . . 248 Ramming 373 | 2 15 40 25 58 . 12 44 . 94 83 . . . . . Kinetic 10224 | 96 508 32 1424 542 1837 1131 1437 . 856 1580 258 178 . 345 . Thermal 5025 | 131 332 162 126 . 307 . . . . 1633 269 336 . 1304 425 Explosive 3900 | . . 273 453 721 220 . . . . 393 235 . . 1404 201 Electromagnetic 1211 | . . . . . . 108 503 . 600 . . . . . . Impact . | . . . . . . . . . . . . . . . . Slashing 248 | . . . . . . . . . . . . . . . 248 Piercing . | . . . . . . . . . . . . . . . . Highest Corruption 4 | . . . . . 1 . 1 1 1 2 4 4 4 4 . Average Corruption 1 | . . . . . 1 . 1 1 1 2 3 4 4 4 . Corruption Purged 1 | . . . . . 1 . . . . . . . . . . Corruption Blocked . | . . . . . . . . . . . . . . . . Effects 105 | . . . . . 5 . 7 10 14 11 18 16 2 22 . Message Errors 29 | . . . . . 2 . . 2 5 4 2 4 . 10 . Matter Fused 23 | . . . . . . . 4 4 5 2 4 2 . 2 . Heat Flow Errors 9 | . . . . . . . . 1 1 2 1 1 1 2 . Energy Discharges 14 | . . . . . . . . 3 1 2 3 2 1 2 . Parts Rejected 2 | . . . . . . . . . . . 1 1 . . . Data Loss (minor) 17 | . . . . . 2 . 2 . 2 . 5 2 . 4 . Data Loss (major) 6 | . . . . . 1 . 1 . . . 2 1 . 1 . Misfires 1 | . . . . . . . . . . 1 . . . . . Alerts 3 | . . . . . . . . . . . . 2 . 1 . Weapon Failures 1 | . . . . . . . . . . . . 1 . . . Overload Shots 12 | . . . . . . . . . . . 1 6 . 5 . Overflow Damage 243 | . . 21 18 40 . . . . . 48 8 29 . 50 29 Projectiles 133 | . . . . . . . . . . 46 8 29 . 50 . Explosions 81 | . . 21 18 40 . . . . . 2 . . . . . Melee 29 | . . . . . . . . . . . . . . . 29 Knockbacks 15 | . 1 . . . . . . . 8 6 . . . . . Impact 3 | . 1 . . . . . . . 2 . . . . . . Kinetic 12 | . . . . . . . . . 6 6 . . . . . Secondary . | . . . . . . . . . . . . . . . . Self-Inflicted Damage 214 | . . 29 20 55 . . . . . . . . . 52 58 Shots 8 | . . 1 1 3 . . . . . . . . . 2 1 Rammed 54 | 1 5 6 5 6 . 5 8 . 9 9 . . . . . Targets Rammed 60 | 1 5 6 6 8 . 5 8 . 11 10 . . . . . Kicked . | . . . . . . . . . . . . . . . . Crushed 6 | . . . 1 2 . . . . 2 1 . . . . . Highest Temperature 370 | . 105 47 198 117 220 370 15 223 224 184 60 198 206 216 19 Average Temperature 68 | . 34 15 50 47 85 120 9 111 72 35 35 81 116 66 16 Received Heat Transfer 2556 | . 168 . 336 135 . 342 306 . 153 516 36 . . 504 60 Effects 5 | . . . . . 3 2 . . . . . . . . . Energy Bleed 1 | . . . . . . 1 . . . . . . . . . Interference 3 | . . . . . 3 . . . . . . . . . . Short Circuit 1 | . . . . . . 1 . . . . . . . . . Siege Activations . | . . . . . . . . . . . . . . . . Martial Activations . | . . . . . . . . . . . . . . . . Shielding Activations . | . . . . . . . . . . . . . . . . Robots Disrupted 1 | . . . . . . . 1 . . . . . . . . Combat Hostiles 1 | . . . . . . . 1 . . . . . . . . Robots Corrupted 3 | . . . . . . 1 . . 2 . . . . . . Combat Hostiles 3 | . . . . . . 1 . . 2 . . . . . . Parts Fried 6 | . . . . . . . 2 . 4 . . . . . . Impact Corruptions . | . . . . . . . . . . . . . . . . Robots Melted . | . . . . . . . . . . . . . . . . Combat Hostiles . | . . . . . . . . . . . . . . . . Parts Melted 11 | . 2 . 2 . . . . . . 2 . 1 . 2 2 Heat Transferred 8315 | 300 798 385 592 . 720 . . . . 2519 333 396 . 1680 592 Parts Sabotaged . | . . . . . . . . . . . . . . . . Parts Stolen 4 | . . . . . . . . . . . . 4 . . . Parts Stripped . | . . . . . . . . . . . . . . . . Power Chain Reactions . | . . . . . . . . . . . . . . . . Alert | -11 -10 -10 -9 -9 -9 -8 -8 -8 -8 -7 -7 -7 -7 -6 -6 ------- Run | Yrd Mat Min Mat Min Exi Min Mat Gar Mat Fac Low Low Dat Pro Fac Maximum Alert Level 3 | . . . 1 . . 1 2 3 2 2 . . . . . Low Security (%) 63 | 100 100 100 35 100 . 85 57 . . 59 . . . . 100 Level 1 17 | . . . 64 . . 14 14 31 36 24 . . . . . Level 2 15 | . . . . . . . 27 37 63 15 . . . . . Level 3 3 | . . . . . . . . 30 . . . . . . . Level 4 . | . . . . . . . . . . . . . . . . Level 5 . | . . . . . . . . . . . . . . . . High Security . | . . . . . . . . . . . . . . . . Max Security . | . . . . . . . . . . . . . . . . Peak Influence 1023 | 5 146 112 319 185 . 254 456 1023 535 455 . . . . 103 Initial 498 | . . . 7 119 . . 24 273 498 237 . . . . 32 Average 183 | . 35 24 186 70 . 117 168 570 425 192 . . . . 31 Influence Increases 6398 | 30 341 299 753 436 . 555 777 750 815 795 140 5 . 495 207 Destroy 0b10 Robot/C 3580 | . 240 160 420 300 . 400 460 . 480 540 120 . . 440 20 Destroy 0b10 Robot/NC 370 | 30 15 15 80 35 . 10 35 . 55 65 . 5 . 5 20 Destroy Leader 770 | . 66 30 138 40 . 70 102 . 132 108 20 . . 50 14 Allied During Kill 62 | . . 3 28 . . . . . 31 . . . . . . Successful Hack 79 | . 10 . 16 . . . 30 . 5 . . . . . 18 Disable Machine 90 | . . 15 . . . . 30 . . 45 . . . . . Anti-Garrison Action 750 | . . . . . . . . 750 . . . . . . . Destroy Structure 187 | . 10 31 26 61 . . 15 . 7 22 . . . . 15 Partial Spotted 30 | . . . . . . . . . 15 . . . . . 15 Lose Combat Pursuer 480 | . . 45 45 . . 75 105 . 90 15 . . . . 105 Influence Decreases 6353 | 30 341 279 466 743 . 493 419 147 1315 869 589 5 . 442 215 Entered New Map 1385 | . . . 13 188 . . 38 147 525 286 167 . . . 21 Time Decay 4503 | 30 341 264 423 545 . 483 351 . 550 553 422 5 . 352 184 Lost Part 175 | . . 15 10 10 . 10 30 . 10 30 . . . 50 10 Lost Ally 140 | . . . 20 . . . . . 80 . . . . 40 . Purge Threat 150 | . . . . . . . . . 150 . . . . . . Squads Dispatched 21 | . 3 . . 1 . . 2 . 4 7 . . . 1 3 Investigation 4 | . 2 . . 1 . . . . . 1 . . . . . Extermination 5 | . . . . . . . . . . 4 . . . . 1 Reinforcement 11 | . 1 . . . . . 2 . 4 2 . . . . 2 Assault 1 | . . . . . . . . . . . . . . 1 . Garrison . | . . . . . . . . . . . . . . . . Intercept . | . . . . . . . . . . . . . . . . Searches Triggered . | . . . . . . . . . . . . . . . . Data Miner Redirects 1 | . . . . . . . . . . . . . . . 1 Construction Impeded 1 | . . . . . . . . . . 1 . . . . . Haulers Reinforced 1 | . . . . . . . . . . 1 . . . . . Active Scanning Responses . | . . . . . . . . . . . . . . . . Cargo Convoy Interrupts . | . . . . . . . . . . . . . . . . Stealth | -11 -10 -10 -9 -9 -9 -8 -8 -8 -8 -7 -7 -7 -7 -6 -6 --------- Run | Yrd Mat Min Mat Min Exi Min Mat Gar Mat Fac Low Low Dat Pro Fac Distress Signals 13 | . 1 . 3 . . . 3 . 4 . . . . . 2 Communications Jammed . | . . . . . . . . . . . . . . . . Distress Signals . | . . . . . . . . . . . . . . . . Times Spotted 278 | . 22 9 29 12 16 27 39 . 31 41 6 4 . 24 18 Peak Tracking Total 10 | . 3 3 8 4 9 8 10 . 4 4 3 4 . 9 7 Tactical Retreats 19 | . . 3 2 . . 3 3 . 4 1 . . . . 3 Traps | -11 -10 -10 -9 -9 -9 -8 -8 -8 -8 -7 -7 -7 -7 -6 -6 ------- Run | Yrd Mat Min Mat Min Exi Min Mat Gar Mat Fac Low Low Dat Pro Fac Traps Triggered 10 | . 2 . . . . . 1 . 3 . . . . . 4 Indirectly . | . . . . . . . . . . . . . . . . Trap Hack Attempts . | . . . . . . . . . . . . . . . . Triggered . | . . . . . . . . . . . . . . . . Disarmed 6 | . 6 . . . . . . . . . . . . . . Reprogrammed . | . . . . . . . . . . . . . . . . Reused . | . . . . . . . . . . . . . . . . Traps Extracted . | . . . . . . . . . . . . . . . . Installed . | . . . . . . . . . . . . . . . . Triggered . | . . . . . . . . . . . . . . . . Machines | -11 -10 -10 -9 -9 -9 -8 -8 -8 -8 -7 -7 -7 -7 -6 -6 ---------- Run | Yrd Mat Min Mat Min Exi Min Mat Gar Mat Fac Low Low Dat Pro Fac Machines Disabled 19 | . . 1 . . 10 . 2 . . 3 . 1 . 2 . Max in Single Turn 1 | . . 1 . . 1 . 1 . . 1 . 1 . 1 . Garrison Access 1 | . . . . . . . . . 1 . . . . . . Machines Repaired . | . . . . . . . . . . . . . . . . Machines Dismantled . | . . . . . . . . . . . . . . . . Machines Sabotaged . | . . . . . . . . . . . . . . . . Overloaded Fab Kills . | . . . . . . . . . . . . . . . . Hacking | -11 -10 -10 -9 -9 -9 -8 -8 -8 -8 -7 -7 -7 -7 -6 -6 --------- Run | Yrd Mat Min Mat Min Exi Min Mat Gar Mat Fac Low Low Dat Pro Fac Machines Accessed 52 | . 8 . 9 1 2 . 7 2 7 7 . . 4 . 5 Terminals 31 | . 6 . 6 . . . 6 2 4 3 . . . . 4 Fabricators 4 | . . . . . . . . . . 3 . . . . 1 Repair Stations 2 | . . . 1 . . . . . 1 . . . . . . Recycling Units 5 | . 2 . 2 . . . . . 1 . . . . . . Scanalyzers 1 | . . . . . . . . . . 1 . . . . . Garrison Access 2 | . . . . . . . 1 . 1 . . . . . . Total Hacks 144 | . 16 . 18 1 2 . 23 8 20 15 . . 28 . 13 Successful 82 | . 8 . 11 1 2 . 13 . 12 2 . . 28 . 5 Failed 62 | . 8 . 7 . . . 10 8 8 13 . . . . 8 Catastrophic 13 | . 1 . 2 . . . 2 1 1 3 . . . . 3 Database Lockouts . | . . . . . . . . . . . . . . . . Manual 61 | . 9 . 13 . 1 . 18 2 4 4 . . . . 10 Terminals 80 | . 11 . 12 . . . 21 8 9 8 . . . . 11 Fabricators 5 | . . . . . . . . . . 3 . . . . 2 Repair Stations 10 | . . . 3 . . . . . 7 . . . . . . Recycling Units 11 | . 5 . 3 . . . . . 3 . . . . . . Scanalyzers 4 | . . . . . . . . . . 4 . . . . . Garrison Access 3 | . . . . . . . 2 . 1 . . . . . . Terminal Hacks 49 | . 6 . 1 1 2 . 5 . 4 . . . 28 . 2 Record 13 | . . . . . 1 . . . . . . . 11 . 1 Part Schematic 8 | . . . . . . . . . . . . . 8 . . Robot Schematic 6 | . . . . . . . . . . . . . 6 . . Robot Analysis 10 | . 5 . . . . . 4 . 1 . . . . . . Prototype ID Bank 3 | . . . . . . . . . . . . . 3 . . Open Door 1 | . . . . 1 . . . . . . . . . . . Branch Access Points 1 | . . . . . . . . . . . . . . . 1 Alert Level 1 | . . . . . . . . . 1 . . . . . . Unreport Threat 1 | . . . . . . . . . 1 . . . . . . Disarm Traps 1 | . 1 . . . . . . . . . . . . . . Patrol Status 1 | . . . 1 . . . . . . . . . . . . Transport Status 1 | . . . . . . . . . 1 . . . . . . Hauler Manifests 1 | . . . . . . . 1 . . . . . . . . Proto ID Catalog 1 | . . . . . 1 . . . . . . . . . . Fabricator Hacks 2 | . . . . . . . . . . 1 . . . . 1 Network Status 2 | . . . . . . . . . . 1 . . . . 1 Repair Station Hacks 7 | . . . 2 . . . . . 5 . . . . . . Scan Component 5 | . . . 2 . . . . . 3 . . . . . . Repair 2 | . . . . . . . . . 2 . . . . . . Recycling Unit Hacks 3 | . 1 . 1 . . . . . 1 . . . . . . Retrieve Components 3 | . 1 . 1 . . . . . 1 . . . . . . Scanalyzer 1 | . . . . . . . . . . 1 . . . . . Insert Component 1 | . . . . . . . . . . 1 . . . . . Garrison Access Hacks 2 | . . . . . . . 1 . 1 . . . . . . Unlock Access 1 | . . . . . . . 1 . . . . . . . . Seal Access 1 | . . . . . . . . . 1 . . . . . . Unauthorized Hacks 18 | . 1 . 7 . . . 7 . 1 . . . . . 2 Terminals 18 | . 1 . 7 . . . 7 . 1 . . . . . 2 Assimilate 1 | . . . . . . . . . . . . . . . 1 Botnet 7 | . 1 . 2 . . . 2 . 1 . . . . . 1 Skim 10 | . . . 5 . . . 5 . . . . . . . . Fabricators . | . . . . . . . . . . . . . . . . Repair Stations . | . . . . . . . . . . . . . . . . Recycling Units . | . . . . . . . . . . . . . . . . Scanalyzers . | . . . . . . . . . . . . . . . . Garrison Access . | . . . . . . . . . . . . . . . . Data Cores Recovered 2 | . . . 1 . . . 1 . . . . . . . . Used . | . . . . . . . . . . . . . . . . Hacking Detections 38 | . 6 . 8 . . . 5 2 6 6 . . . . 5 Full Trace Events 3 | . . . . . . . . 1 1 1 . . . . . Feedback Events . | . . . . . . . . . . . . . . . . Feedback Blocked . | . . . . . . . . . . . . . . . . Robot Schematics Acquired 6 | . . . . . . . . . . . . . 6 . . Robots Built . | . . . . . . . . . . . . . . . . Authchips . | . . . . . . . . . . . . . . . . Time . | . . . . . . . . . . . . . . . . Total Robot Build Rating . | . . . . . . . . . . . . . . . . Part Schematics Acquired 8 | . . . . . . . . . . . . . 8 . . Parts Built . | . . . . . . . . . . . . . . . . Authchips . | . . . . . . . . . . . . . . . . Time . | . . . . . . . . . . . . . . . . Total Part Build Rating . | . . . . . . . . . . . . . . . . Parts Repaired 2 | . . . . . . . . . 2 . . . . . . Time 102 | . . . . . . . . . 102 . . . . . . Parts Recycled . | . . . . . . . . . . . . . . . . Recycled Matter . | . . . . . . . . . . . . . . . . Retrieved Matter . | . . . . . . . . . . . . . . . . Retrieved Components 20 | . 2 . 10 . . . . . 8 . . . . . . Parts Scanalyzed . | . . . . . . . . . . . . . . . . Part Schematics Acquired . | . . . . . . . . . . . . . . . . Parts Damaged . | . . . . . . . . . . . . . . . . Bothacking | -11 -10 -10 -9 -9 -9 -8 -8 -8 -8 -7 -7 -7 -7 -6 -6 ------------ Run | Yrd Mat Min Mat Min Exi Min Mat Gar Mat Fac Low Low Dat Pro Fac Used RIF Installer . | . . . . . . . . . . . . . . . . Robots Hacked . | . . . . . . . . . . . . . . . . Non-combat . | . . . . . . . . . . . . . . . . Combat . | . . . . . . . . . . . . . . . . Robot Hacks Applied . | . . . . . . . . . . . . . . . . Relay Couplers Released . | . . . . . . . . . . . . . . . . Fabnet Peak Effective % . | . . . . . . . . . . . . . . . . Robots Rewired 9 | . . . . . . . . 7 . . . . . 2 . Allies Hacked . | . . . . . . . . . . . . . . . . Hacks Repelled 1 | . . . . . . . . . . . . . . . 1 Allies | -11 -10 -10 -9 -9 -9 -8 -8 -8 -8 -7 -7 -7 -7 -6 -6 -------- Run | Yrd Mat Min Mat Min Exi Min Mat Gar Mat Fac Low Low Dat Pro Fac Total Allies 14 | . . 4 . . . . . 7 . . . . . 2 1 Largest Group 5 | . . 3 3 . . . . 5 5 . . . . 2 1 Highest-Rated Group 78 | . . 40 40 . . . . 78 77 . . . . 60 26 Highest-Rated Ally 31 | . . 31 16 . . . . 21 21 . . . . 30 26 Initial Warlord ECA Mod 6 | . . . . . . . . . 2 1 1 1 1 . . Total Orders . | . . . . . . . . . . . . . . . . Ally Attacks 68 | . . 14 20 . . . . . 25 . . . . 9 . Total Damage 1124 | . . 270 192 . . . . . 452 . . . . 210 . Kills 13 | . . 2 5 . . . . . 6 . . . . . . Allies Corrupted . | . . . . . . . . . . . . . . . . Allies Melted . | . . . . . . . . . . . . . . . . Intel | -11 -10 -10 -9 -9 -9 -8 -8 -8 -8 -7 -7 -7 -7 -6 -6 ------- Run | Yrd Mat Min Mat Min Exi Min Mat Gar Mat Fac Low Low Dat Pro Fac Active Infowar (turns) 15169 | 27 1440 1954 1272 9 . 1037 1998 1537 1574 1619 1078 698 134 235 557 Optics 557 | . . . . . . . . . . . . . . . 557 Sensors 2177 | . . . . . . . . . . 32 1078 698 134 235 . Seismic 12802 | 27 1440 1954 1272 9 . 1037 1998 1537 1574 1619 335 . . . . Jamming 29 | . . . . . . . . . . 29 . . . . . Robot Analysis Total 10 | . 5 . . . . . 4 . 1 . . . . . . Derelict Logs Recovered 4 | . . 2 . 1 . . . . . . 1 . . . . Drone Launches . | . . . . . . . . . . . . . . . . Drone Recoveries . | . . . . . . . . . . . . . . . . Exploration | -11 -10 -10 -9 -9 -9 -8 -8 -8 -8 -7 -7 -7 -7 -6 -6 ------------- Run | Yrd Mat Min Mat Min Exi Min Mat Gar Mat Fac Low Low Dat Pro Fac Turns Passed 21135 | 256 1440 1967 1272 1836 2829 1336 1998 1537 1580 1619 1078 698 134 934 621 Spaces Moved 9511 | 122 591 561 620 718 1062 713 804 608 677 755 655 404 89 341 791 Core 2 | 2 . . . . . . . . . . . . . . . Treads 7699 | 120 591 561 620 718 1062 713 804 608 677 755 142 . . 228 100 Legs . | . . . . . . . . . . . . . . . . Wheels 1119 | . . . . . . . . . . . 513 404 89 113 . Hover 691 | . . . . . . . . . . . . . . . 691 Flight . | . . . . . . . . . . . . . . . . Fastest Speed 38 | 50 160 240 160 160 160 160 160 240 160 162 145 160 145 145 38 Average Speed 185 | 158 208 240 160 238 222 160 218 240 190 162 153 160 146 215 54 Slowest Speed 450 | 160 240 240 160 240 240 240 240 240 240 242 162 160 160 240 450 Overloaded Moves . | . . . . . . . . . . . . . . . . Propulsion Burnouts . | . . . . . . . . . . . . . . . . Robots Hopped . | . . . . . . . . . . . . . . . . Potential Cave-ins . | . . . . . . . . . . . . . . . . Cave-ins Triggered . | . . . . . . . . . . . . . . . . Exploration Rate (%) 65 | 6 96 99 67 99 90 96 67 81 56 27 68 47 68 54 26 Regions Visited 15 Branch Regions 8 Pre-discovered Areas 7 | . . 1 1 1 1 . 1 . . . 1 . 1 . . Known Exits Taken 8 | . . . . . . 1 1 . 1 1 1 1 1 1 . Unknown Exits Taken 6 | 1 1 1 1 1 1 . . . . . . . . . . Scrap Searched 15 | . . 1 . 1 . 3 . . . . 8 1 . 1 . Spaces Dug 76 | . 8 1 . 43 . . . . . . 1 . . 22 1 Terrain Destroyed 342 | . 8 36 27 99 11 . 11 . 6 17 33 5 . 74 15 Melee 1 | . . . . . . . . . . . . . . . 1 Projectile 29 | . . 3 . . . . . . 6 7 1 5 . 7 . AOE 312 | . 8 33 27 99 11 . 11 . . 10 32 . . 67 14 Terrain Rammed . | . . . . . . . . . . . . . . . . Walls Destroyed . | . . . . . . . . . . . . . . . . Machines Disabled . | . . . . . . . . . . . . . . . . Actions | -11 -10 -10 -9 -9 -9 -8 -8 -8 -8 -7 -7 -7 -7 -6 -6 --------- Run | Yrd Mat Min Mat Min Exi Min Mat Gar Mat Fac Low Low Dat Pro Fac Total 11856 | 149 681 1135 786 778 1365 802 941 694 915 969 707 432 94 463 945 Wait 1145 | . 6 535 41 3 165 28 34 3 163 48 5 9 . 39 66 Move 9495 | 121 590 560 619 717 1061 712 804 605 676 754 654 403 88 340 791 Hop . | . . . . . . . . . . . . . . . . Pick Up 104 | 4 14 5 13 4 14 1 12 4 8 9 9 . . 2 5 Fast Attach 51 | 7 . 1 2 . 4 . 1 . 8 7 2 2 2 2 13 Attach 36 | . . 1 3 1 6 4 6 . . 5 1 . 1 6 2 Detach 13 | . . . 1 . 2 3 . . 1 . . . 1 1 4 Swap 119 | . 4 6 19 10 14 4 9 3 5 20 12 1 . 7 5 Drop 140 | . 3 2 24 7 18 1 13 6 12 20 8 1 2 . 23 Fire 578 | 16 59 19 58 28 81 44 54 . 31 96 16 16 . 40 20 Melee 10 | . . . . . . . . . . . . . . . 10 Ram . | . . . . . . . . . . . . . . . . Kick . | . . . . . . . . . . . . . . . . Crush 60 | 1 5 6 6 8 . 5 8 . 11 10 . . . . . Escape Stasis 6 | . . . . . . . . . . . . . . . 6 Rewire 99 | . . . . . . . . 73 . . . . . 26 . Trap . | . . . . . . . . . . . . . . . . Miscellaneous . | . . . . . . . . . . . . . . . . Route ------- -11/Scrapyard -10/Materials (discovered 4 exits: *Mat x3 / [*Min]) -10/Mines (discovered 3 exits: *Mat x2 / [*Sub]) -9/Materials (discovered 7 exits: *Mat x3 / *Min x2 / Sto x2) -9/Mines (discovered 3 exits: *Mat x2 / *Exi) -9/Exiles (discovered 2 exits: [*Min x2]) -8/Mines (discovered 2 exits: *Mat x2) -8/Materials (discovered 4 exits: *Fac x3 / Gar) -8/Garrison (discovered 3 exits: *Mat x3) -8/Materials -7/Factory -7/Lower Caves -7/Lower Caves -7/Data Miner -6/Proximity Caves -6/Factory (discovered 2 exits: Low x2) History --------- Turn | Location | Event 20 | -11/Scrapyard | Discovered new exit (range 16) 257 | -11/Scrapyard | Entered Materials 315 | -10/Materials | Build established: Mutant 508 | -10/Materials | Discovered new exit (range 7) 567 | -10/Materials | Discovered new exit (range 12) 880 | -10/Materials | Discovered new exit (range 16) 1304 | -10/Materials | Discovered new exit (range 5) 1697 | -10/Materials | Entered Mines 1837 | -10/Mines | Received a Rocket Launcher from a helpful Derelict 1869 | -10/Mines | Learned location of Mines (-8) 1872 | -10/Mines | Received a Mining Laser from a helpful Derelict 2122 | -10/Mines | Assembled infested the area 2868 | -10/Mines | Discovered new exit (range 16) 2921 | -10/Mines | Discovered new exit (range 11) 3132 | -10/Mines | Assisted by bots powering up and referring to "LRC-V3" 3177 | -10/Mines | Discovered new exit (range 16) 3664 | -10/Mines | Entered Materials 3664 | -9/Materials | Accompanied by 3 allies 3664 | -9/Materials | Evolved 2 slots: Propulsion x1, Weapon x1 4004 | -9/Materials | Discovered new exit (range 4) 4094 | -9/Materials | Discovered new exit (range 16) 4207 | -9/Materials | Build established: Scavenger-Gunner 4464 | -9/Materials | Identified exit to Materials 4496 | -9/Materials | Learned location of 1 exit from Storage 4507 | -9/Materials | Discovered new exit (range 6) 4528 | -9/Materials | Learned Storage security intel 4532 | -9/Materials | Learned 4 Recycling zone layouts 4533 | -9/Materials | Identified exit to Storage 4546 | -9/Materials | Learned location of Zion (-6) 4936 | -9/Materials | Entered Mines 5082 | -9/Mines | Discovered exit to Materials (range 6) 5233 | -9/Mines | Build established: Scavenger-Tank 5846 | -9/Mines | Deemed a non-threat by the Exiles lab entrance 5846 | -9/Mines | Discovered new exit (range 5) 6461 | -9/Mines | Met a Derelict shopkeep closing up shop 6772 | -9/Mines | Entered Exiles 6832 | -9/Exiles | Met 8R-AWN 6873 | -9/Exiles | Met EX-HEX 6998 | -9/Exiles | Met EX-DEC 7300 | -9/Exiles | Met EX-BIN 7334 | -9/Exiles | Aligned with FarCom system 7336 | -9/Exiles | Given EX-Vault access code 7392 | -9/Exiles | Opened EX-Vault 7406 | -9/Exiles | Found Gui. Plasma Cannon 7457 | -9/Exiles | Warned to stay clear of 0b10 Research branches 7713 | -9/Exiles | Discovered new exit (range 15) 7943 | -9/Exiles | Attacked by the Exiles 8096 | -9/Exiles | Core integrity fell below 50% 8134 | -9/Exiles | Lost 5 parts (1p2n1u1w) 8136 | -9/Exiles | Destroyed 8R-AWN 8151 | -9/Exiles | Found Prototype Ballistic Gun 8152 | -9/Exiles | Identified 8R-AWN's Boregun 8209 | -9/Exiles | Build established: Tank 8384 | -9/Exiles | Destroyed EX-BIN 8405 | -9/Exiles | Destroyed EX-HEX 8578 | -9/Exiles | Destroyed EX-DEC 9172 | -9/Exiles | Found Prototype Energy Gun 9172 | -9/Exiles | Identified AWS/EX-DEC 9185 | -9/Exiles | Found Deploy-a-Sentry 9211 | -9/Exiles | Found Prototype Device 9211 | -9/Exiles | Identified System Purifier 9308 | -9/Exiles | Found Prototype Processor 9587 | -9/Exiles | Discovered new exit (range 10) 9601 | -9/Exiles | Left Exiles lab with Deploy-a-Sentry 9601 | -9/Exiles | Entered Mines 9603 | -8/Mines | Build established: Scavenger-Tank 9799 | -8/Mines | Core integrity fell below 20% 10181 | -8/Mines | Found DCF Scrap (14 items) 10206 | -8/Mines | Build established: Scavenger-Gunner 10770 | -8/Mines | Discovered exit to Materials (range 10) 10930 | -8/Mines | Discovered exit to Materials (range 15) 10937 | -8/Mines | Entered Materials 10937 | -8/Materials | Evolved 2 slots: Utility x2 10938 | -8/Materials | Identified Exp. Core Analyzer 11249 | -8/Materials | Discovered new exit (range 16) 11643 | -8/Materials | Identified exit to Factory 11775 | -8/Materials | Learned 4 Lower Caves zone layouts 11825 | -8/Materials | Learned Factory scanalyzer intel 11865 | -8/Materials | Learned location of 1 exit from Lower Caves 11911 | -8/Materials | Learned location of 1 exit from Extension 11940 | -8/Materials | Learned Storage security intel 11977 | -8/Materials | Learned Factory repair station intel 12023 | -8/Materials | Learned 8 Factory zone layouts 12126 | -8/Materials | Destroyed 9 combat bots 12935 | -8/Materials | Identified exit to Garrison 12935 | -8/Materials | Entered Garrison 12935 | -8/Garrison | Discovered recently destroyed garrison 13505 | -8/Garrison | Discovered new exit (range 10) 13585 | -8/Garrison | Discovered new exit (range 3) 13827 | -8/Garrison | Discovered new exit (range 15) 14189 | -8/Garrison | Build established: Commander-Gunner 14208 | -8/Garrison | Attempted to access garrison exit controls, blocked by remote lockdown 14419 | -8/Garrison | Attempted to access garrison exit controls, blocked by remote lockdown 14472 | -8/Garrison | Entered Materials 14472 | -8/Materials | Accompanied by 5 allies 14579 | -8/Materials | Repaired Imp. Assault Rifle 14631 | -8/Materials | Repaired Imp. Assault Rifle 14942 | -8/Materials | Lost 3 allies 14962 | -8/Materials | Build established: Gunner 15727 | -8/Materials | Discovered exit to Factory (range 9) 15738 | -8/Materials | Build established: Scavenger-Gunner 16052 | -8/Materials | Entered Factory 16052 | -7/Factory | Evolved 2 slots: Propulsion x1, Utility x1 16054 | -7/Factory | Loaded intel: 6 repair station locations 16055 | -7/Factory | Loaded intel: 4 scanalyzer locations 16682 | -7/Factory | Build established: Scavenger-Tank 17231 | -7/Factory | Build established: Tank 17432 | -7/Factory | Destroyed 7 combat bots 17570 | -7/Factory | Discovered new exit (range 14) 17638 | -7/Factory | Identified exit to Lower Caves 17671 | -7/Factory | Entered Lower Caves 17672 | -7/Lower Caves | Identified exit to Lower Caves 17677 | -7/Lower Caves | Met a Warlord Commander 17678 | -7/Lower Caves | Learned location of Warlord (-5) 17679 | -7/Lower Caves | Warlord Commander delivered Encrypted Comm Array 17685 | -7/Lower Caves | Found Encrypted Comm Array 17937 | -7/Lower Caves | Build established: Skirmisher 18135 | -7/Lower Caves | Learned Factory security intel 18315 | -7/Lower Caves | Build established: Scavenger-Skirmisher 18374 | -7/Lower Caves | Attracted the attention of an 0b10 checkpoint 18719 | -7/Lower Caves | Build established: Skirmisher 18729 | -7/Lower Caves | Found Alien Artifact 18729 | -7/Lower Caves | Identified Core Expander 18729 | -7/Lower Caves | Installed Core Expander, added new Power slot 18749 | -7/Lower Caves | Entered another Lower Caves area 18936 | -7/Lower Caves | Encountered a Warlord checkpoint 19319 | -7/Lower Caves | Build established: Scavenger-Skirmisher 19320 | -7/Lower Caves | Spotted 6C-97B(f) 19321 | -7/Lower Caves | Encountered a Master Thief 19321 | -7/Lower Caves | Deploy-a-Sentry stolen by Master Thief 19325 | -7/Lower Caves | Spotted 5G-R3J(f) 19325 | -7/Lower Caves | Spotted YI-J7P(f) 19326 | -7/Lower Caves | Encountered a Master Thief 19326 | -7/Lower Caves | Encountered a Master Thief 19327 | -7/Lower Caves | Spotted 4M-ZBZ(f) 19328 | -7/Lower Caves | Encountered a Master Thief 19329 | -7/Lower Caves | 8R-AWN's Boregun stolen by Master Thief 19331 | -7/Lower Caves | Lgt. Treads stolen by Master Thief 19332 | -7/Lower Caves | Seismic Detector stolen by Master Thief 19426 | -7/Lower Caves | Discovered new exit (range 15) 19445 | -7/Lower Caves | Identified exit to Data Miner 19447 | -7/Lower Caves | Entered Data Miner 19449 | -7/Data Miner | Discovered new exit (range 6) 19477 | -7/Data Miner | Met Data Miner 19513 | -7/Data Miner | Learned location of Section 7 (-2) 19513 | -7/Data Miner | Acquired the access code to Warlord's prototype stash 19526 | -7/Data Miner | Received God Mode back door access code from Data Miner 19580 | -7/Data Miner | Identified exit to Proximity Caves 19581 | -7/Data Miner | Entered Proximity Caves 19637 | -6/Proximity Caves | Lost 3 parts (1p1n1w) 19812 | -6/Proximity Caves | Attracted the attention of an 0b10 outpost 19847 | -6/Proximity Caves | Lost 3 parts (1n2u) 19875 | -6/Proximity Caves | Destroyed 9 combat bots 20458 | -6/Proximity Caves | Attracted the attention of an 0b10 checkpoint 20479 | -6/Proximity Caves | Discovered new exit (range 15) 20482 | -6/Proximity Caves | Build established: Scavenger-Gunner 20511 | -6/Proximity Caves | Identified exit to Factory 20515 | -6/Proximity Caves | Entered Factory 20515 | -6/Factory | Evolved 2 slots: Utility x2 20695 | -6/Factory | Assembled infested ambush trap array 20710 | -6/Factory | Incoming assault squad redirected 20817 | -6/Factory | Allied Derelicts emerged from ambush trap array 20925 | -6/Factory | Lost 3 allies 20973 | -6/Factory | Identified exit to Lower Caves 21125 | -6/Factory | Build established: Hacker-Mutant 21136 | -6/Factory | Self-destructed Last Messages --------------- 21115_ Slug penetrates Matter Pump. 21115_ Matter Pump disabled. 21117_ Imp. System Shield repels hacking attempt against Administrator 5a. 21121_ Chainsword follow-up attack on P-60 Hacker. 21121_ Destroyed Shock Rifle. 21121_ R-10 Processor collects Gauss Rifle. 21124_ P-60 Hacker Shock Rifle severed. 21124_ R-10 Processor collects Hvy. Assault Rifle. 21127_ R-10 Processor collects Mic. Nuclear Core. 21127_ Acquired 20 matter. 21129_ Penetrated by Slug. 21132_ Critical hit (Destroy). 21132_ Lgt. Fission Core destroyed. 21132_ Slug penetrates Wall. 21132_ Penetrated by Slug. 21134_ R-10 Processor collects Flexi-carbon Leg. Map ----- +----------------------------------------------------+ | ?# "Y" | | """""" # " " """ """ """ """ | | # = """ """ """ """ | | """""" + """ """ """ """ """ """ | | # """"" """"" | | """""" # """"" """"" | | ?# ##############+######## | | ** ?# !! #????????????# ?????? | | ** ??# ![ p #????????????# """ ???? | | ** / ??# ![ ############## """ #?? | | ####???# # """"" ! # """ #?? | | ######## # ""T"" # #?? | | ""T""" # ######### # # #?? | | # # ! # # """"""""" ########?? | | # # # # #????????? | | # # """ # # """"""""" #????????? | | * # # """ # + #????????? | | + + """ # # """"""""" #????????? | | *[ * # # # # #????????? | | ! # # """ # # """"""""" #????????? | | ######## # """ # # ??????????? | | # # """ # # ?????????? | | # # # R#############?????????? | | # # + h h ###???????????????????? | | # ######### T#???????????????????? | | # #???????# @ ""#???????????????????? | | # ###+####???????# ###?????????????????##? | | # # ?????????# R####################"#? | | ####### ???????# ! # = #?? | | ??????# ?????# [ # ! #?? | | ??????# #????# "%" # """ ]#?? | | ??????# #????# """ # [! """ #?? | | ??????# #????# %"" # [ * """ #?? | | ??????# #????##### # ] #?? | | ??????# #????????# """ # ! """ #?? | | ??????###########????????# """ # """ #?? | | ?????????????????????????# """ + """ !#?? | | ?????????????????????????# # #?? | | ?????????????????????????# # #?? | | ?????????????????????????# # #?? | | ???????????????????????########+################?? | | ???????????????????????# ! #????????? | | ???????????????????????# #????????? | | ???????????????????????# ! #????????? | | ???????????????????????# #????????? | | ???????????????????????# = #????????? | | ???????????????????????# #????????? | | ???????????????????????# #????????? | | ???????????????????????# !#????????? | | ???????????????????????# #????????? | +----------------------------------------------------+ Best States ------------- Heat Dissipation 80 Energy Generation 31 Energy Capacity 350 Matter Stores 300 Matter Capacity 300 Sight Range 22 Robot Scan Range 15 Terrain Scan Density 10 Jamming Range 16 Armor Coverage 450 Evasion (%) 57 Targeting Accuracy 8 Core Analysis 8 Recoil Reduction 4 Defensive Hacking 22 Item Schematics ----------------- Combat Drone Bay | -7/Data Miner | Free Lgt. Regenerative Plating | -7/Data Miner | Free Biomechanical Wings | -7/Data Miner | Free Exp. Propulsion Shielding | -7/Data Miner | Free Imp. Lightning Gun | -7/Data Miner | Free Arm. Medium Treads | -7/Data Miner | Free Imp. Shock Absorption System | -7/Data Miner | Free Imp. Plasma Cutter | -7/Data Miner | Free Robot Schematics ------------------ R-10 Processor | -7/Data Miner | Free E-15 Imp | -7/Data Miner | Free A-15 Conveyor | -7/Data Miner | Free O-24 Administrator | -7/Data Miner | Free Y-64 Sentinel | -7/Data Miner | Free P-70 Sage | -7/Data Miner | Free Fabricated ------------ Nothing Repaired ---------- Imp. Assault Rifle | 32% | -8/Materials Imp. Assault Rifle | 62% | -8/Materials Alien Tech Used ----------------- Core Expander Achievements -------------- None Challenges ------------ None Game ------ Seed WaveAssembledMantle Manual? 0 Play Time 01:38:10 Cumulative 206.6 hours Start 2025.09.15 @ 17:13:58 End 2025.09.15 @ 21:42:11 Sessions 4 Manual Loads 0 Difficulty Rogue Special Mode None Game No. 113 Rogue 113 Adventurer 0 Explorer 0 Win Type - Total 23 Types 10/1/8/1/0/1/1/1/0/0 Lore% 76 Gallery% 67 Achievement% 72 Wizard Run 0 Options --------- Layout 1 ASCII 0 Keyboard 0 Movement Arrows Keybinds 0 Fullscreen 2 Font 24/Tamsyn Map View 50x35 Zoom Use 0% Tactical HUD 1 Map Filters NONE Filters NONE Steam 1 RUN: 9da339f6-60a9-4de0-a2fd-a0c7974b7065